bitfinex/quotes_SOLUSD_20251103
["timestamp","ask_amount","ask_price","bid_price","bid_amount"]
[1762198451163,0.71,167.63,167.58,6.62722288]
[1762198451456,0.71,167.63,167.58,0.66]
[1762198452750,8.35498595,167.63,167.58,0.66]
[1762198453560,0.71,167.63,167.58,0.66]
[1762198453739,8.35498595,167.63,167.58,0.66]
[1762198453942,0.71,167.63,167.58,0.66]
[1762198454139,0.71,167.68,167.58,6.62719716]
[1762198454344,6.72418058,167.71,167.62,20.592]
[1762198454345,8.8650051,167.7,167.62,20.592]
[1762198454569,0.91,167.71,167.62,20.592]
[1762198454865,0.71,167.7,167.63,6.62518041]
[1762198455237,7.64498595,167.68,167.62,26.55776268]
[1762198455437,6.67307634,167.7,167.61,0.66]
[1762198455438,7.64498595,167.67,167.61,0.66]
[1762198455637,7.64498595,167.66,167.6,20.592]
[1762198455844,4.64380164,167.67,167.61,0.66]
[1762198456261,4.64380164,167.67,167.61,21.252]
[1762198456641,0.71,167.67,167.61,21.252]
[1762198457168,0.71,167.67,167.62,27.21787519]
[1762198457365,0.71,167.67,167.62,21.252]
[1762198457569,7.64498595,167.66,167.61,20.592]
[1762198457758,8.35498595,167.67,167.61,21.252]
[1762198458071,0.71,167.66,167.61,21.252]
[1762198458773,4.9408174,167.65,167.59,21.252]
[1762198458938,4.9408174,167.64,167.56,15.06198119]
[1762198459139,4.9408174,167.62,167.57,0.66]
[1762198459394,5.6508174,167.62,167.57,0.66]
[1762198459547,4.9408174,167.62,167.57,0.66]
[1762198459749,4.9408174,167.6,167.54,0.66]
[1762198459951,4.9408174,167.57,167.49,14.92609951]
[1762198460182,9.78882769,167.59,167.49,0.66]
[1762198460183,4.9408174,167.54,167.49,0.66]
[1762198460478,9.78882769,167.52,167.46,0.66]
[1762198460685,15.43964509,167.52,167.46,21.252]
[1762198461173,10.49882769,167.52,167.47,5.97121872]
[1762198461576,14.72964509,167.53,167.48,0.66]
[1762198462369,0.71,167.52,167.48,0.66]
[1762198463585,13.72149258,167.53,167.48,6.63071529]
[1762198463799,13.72149258,167.53,167.48,5.97071529]
[1762198463800,0.71,167.52,167.48,5.97071529]
[1762198464293,3.934746,167.53,167.49,0.66]
[1762198464463,14.72964509,167.54,167.49,0.66]
[1762198464789,8.87778571,167.53,167.48,5.97071529]
[1762198464971,8.87778571,167.53,167.46,27.22329522]
[1762198465165,0.71,167.54,167.47,0.66]
[1762198465166,9.58778571,167.54,167.47,0.66]
[1762198465489,5.6508174,167.54,167.47,0.66]
[1762198465793,0.71,167.53,167.47,0.66]
[1762198466590,3.93696831,167.55,167.48,0.14216157]
[1762198466765,9.78882769,167.56,167.5,20.592]
[1762198467090,4.9408174,167.55,167.5,20.592]
[1762198467297,18.6666134,167.55,167.5,5.97004721]
[1762198467478,9.56778571,167.54,167.49,5.97047367]
[1762198467864,3.93696831,167.57,167.5,0.72]
[1762198468092,3.93696831,167.58,167.5,0.72]
[1762198468392,3.93696831,167.57,167.52,20.592]
[1762198468785,3.93696831,167.57,167.53,21.312]
[1762198469167,9.78882769,167.58,167.54,5.96872388]
[1762198469474,4.63844393,167.57,167.52,5.96918722]
[1762198469676,4.63844393,167.57,167.53,20.592]
[1762198469677,3.94844393,167.56,167.53,20.592]
[1762198470093,9.78882769,167.58,167.53,21.312]
[1762198470291,3.95011171,167.57,167.53,21.312]
[1762198470490,10.47882769,167.58,167.53,21.312]
[1762198470491,3.95011171,167.56,167.53,21.312]
[1762198470706,3.95011171,167.57,167.53,21.312]
[1762198470910,3.95011171,167.56,167.53,21.312]
[1762198471092,3.95011171,167.56,167.53,27.28078783]
[1762198471802,3.95011171,167.57,167.53,27.28078783]
[1762198471994,3.95011171,167.56,167.53,27.28078783]
[1762198472218,10.47882769,167.58,167.53,27.28078783]
[1762198472409,3.95108626,167.57,167.53,27.28078783]
[1762198472610,3.95108626,167.56,167.53,27.28078783]
[1762198472811,0.72,167.57,167.53,27.28078783]
[1762198472992,3.95116906,167.56,167.53,27.28078783]
[1762198473519,13.73999675,167.58,167.53,27.28078783]
[1762198473727,3.95116906,167.57,167.53,27.28078783]
[1762198473905,3.95116906,167.56,167.53,27.28078783]
[1762198474096,3.95116906,167.57,167.53,27.28078783]
[1762198474428,3.95116906,167.56,167.53,27.28078783]
[1762198474638,10.50882769,167.58,167.53,27.28078783]
[1762198474832,3.95293245,167.57,167.53,27.28078783]
[1762198475131,3.95293245,167.56,167.53,27.21078783]
[1762198475320,10.50882769,167.58,167.53,27.21078783]
[1762198475515,3.95326921,167.57,167.54,0.65]
[1762198475720,9.78882769,167.6,167.54,0.65]
[1762198475908,3.95326921,167.59,167.54,0.65]
[1762198476105,3.95326921,167.58,167.54,0.65]
[1762198476310,3.95326921,167.59,167.54,0.65]
[1762198476528,0.72,167.61,167.54,0.65]
[1762198476729,3.954991,167.6,167.54,0.65]
[1762198476931,3.954991,167.59,167.54,0.65]
[1762198477130,0.72,167.61,167.55,5.96836765]
[1762198477329,14.46479774,167.6,167.55,5.96836765]
[1762198477513,3.95597005,167.59,167.55,5.96836765]
[1762198477714,3.95597005,167.58,167.55,5.96836765]
[1762198477914,3.95597005,167.57,167.54,5.96865301]
[1762198478221,3.95597005,167.58,167.54,5.96865301]
[1762198478527,0.72,167.59,167.54,21.242]
[1762198478528,3.95597005,167.57,167.54,21.242]
[1762198478717,3.95597005,167.56,167.54,21.242]
[1762198479037,3.95597005,167.57,167.54,21.242]
[1762198479338,3.95597005,167.57,167.54,27.21051867]
[1762198480039,3.95597005,167.59,167.55,0.65]
[1762198480734,5.65120346,167.63,167.55,0.65]
[1762198480735,9.78882769,167.61,167.55,0.65]
[1762198480918,3.95597005,167.6,167.55,0.65]
[1762198481121,0.72,167.6,167.55,0.65]
[1762198481333,0.72,167.6,167.56,5.96801145]
[1762198481538,3.95597005,167.59,167.56,5.96801145]
[1762198481710,0.72,167.6,167.56,5.96801145]
[1762198481914,3.95597005,167.6,167.56,6.61801145]
[1762198482140,13.74479774,167.61,167.56,5.96801145]
[1762198482327,3.95597005,167.6,167.57,0.65]
[1762198482529,4.68495575,167.63,167.57,0.65]
[1762198482736,3.96495575,167.62,167.57,0.65]
[1762198482930,3.96495575,167.61,167.54,20.592]
[1762198483131,9.78882769,167.58,167.53,5.96884733]
[1762198483332,13.75378344,167.58,167.53,5.96884733]
[1762198483533,10.50882769,167.58,167.53,6.61884733]
[1762198483721,14.47052165,167.58,167.54,0.65]
[1762198484437,3.96169396,167.57,167.52,26.5613149]
[1762198484734,3.96169396,167.57,167.52,27.2113149]
[1762198484936,3.96169396,167.57,167.53,0.65]
[1762198485317,3.96169396,167.57,167.54,5.96872388]
[1762198485519,4.68169396,167.57,167.53,0.65]
[1762198485944,4.68169396,167.57,167.53,6.61907318]
[1762198486149,3.96169396,167.57,167.53,6.61907318]
[1762198486327,0.72,167.57,167.53,6.61907318]
[1762198486650,4.68169396,167.57,167.53,6.61907318]
[1762198486821,4.68169396,167.57,167.53,0.65]
[1762198487331,0.72,167.56,167.52,5.96943648]
[1762198487525,4.68169396,167.56,167.52,5.96943648]
[1762198487726,4.68169396,167.56,167.52,6.61943648]
[1762198487929,8.90251136,167.56,167.52,5.96943648]
[1762198488226,5.6608174,167.56,167.52,5.96943648]
[1762198488439,6.58146085,167.56,167.52,5.96943648]
[1762198488739,0.72,167.56,167.52,5.96943648]
[1762198489135,4.68169396,167.56,167.52,5.96943648]
[1762198489522,3.96169396,167.55,167.52,5.96943648]
[1762198489724,3.96169396,167.55,167.51,26.56174824]
[1762198489945,0.72,167.56,167.51,27.21174824]
[1762198490248,4.68169396,167.56,167.51,27.21174824]
[1762198490647,4.68169396,167.56,167.51,26.56174824]
[1762198490828,3.96169396,167.56,167.51,27.21174824]
[1762198491146,0.72,167.55,167.51,27.21174824]
[1762198491440,4.68169396,167.55,167.51,27.21174824]
[1762198491647,0.72,167.55,167.51,27.21174824]
[1762198491857,4.68169396,167.55,167.51,27.21174824]
[1762198492028,0.72,167.55,167.51,27.21174824]
[1762198492228,4.68169396,167.55,167.51,27.21174824]
[1762198492454,0.72,167.55,167.51,20.592]
[1762198492634,3.96169396,167.54,167.51,27.21175958]
[1762198493034,4.68169396,167.55,167.51,27.21175958]
[1762198493230,9.78882769,167.54,167.47,0.65]
[1762198493556,5.86146085,167.53,167.47,21.242]
[1762198493724,3.96169396,167.53,167.47,27.21309834]
[1762198493930,3.96169396,167.53,167.48,0.65]
[1762198494448,4.68169396,167.53,167.49,5.9705057]
[1762198494630,0.72,167.52,167.49,5.9705057]
[1762198495721,3.96169396,167.53,167.49,6.6205057]
[1762198495918,4.68169396,167.53,167.49,6.6205057]
[1762198496144,0.72,167.52,167.49,5.9705057]
[1762198496739,0.72,167.52,167.48,5.97086219]
[1762198496926,0.72,167.52,167.48,6.62086219]
[1762198497521,3.96169396,167.53,167.49,0.65]
[1762198497929,4.68169396,167.53,167.49,0.65]
[1762198498440,0.72,167.53,167.49,0.65]
[1762198498640,4.68169396,167.53,167.49,6.62027884]
[1762198498842,0.72,167.53,167.49,6.62027884]
[1762198499351,4.68169396,167.53,167.49,6.62027884]
[1762198499661,5.66826152,167.53,167.48,5.97085555]
[1762198499943,4.68169396,167.53,167.48,6.62085555]
[1762198500344,3.96169396,167.56,167.51,20.592]
[1762198500539,0.72,167.57,167.52,21.242]
[1762198500741,3.97405988,167.56,167.55,20.592]
[1762198500956,3.97405988,167.6,167.56,20.592]
[1762198501125,4.94826152,167.62,167.53,0.65]
[1762198501126,8.9223214,167.59,167.53,0.65]
[1762198501451,3.97405988,167.58,167.53,21.242]
[1762198501664,3.97405988,167.57,167.53,21.242]
[1762198501954,3.97405988,167.56,167.53,21.242]
[1762198502132,0.72,167.59,167.53,21.242]
[1762198502465,3.9765322,167.58,167.53,21.242]
[1762198502762,3.9765322,167.57,167.54,5.96872388]
[1762198502960,3.9765322,167.56,167.54,5.96872388]
[1762198503254,0.68,167.59,167.54,6.63872388]
[1762198503440,3.97844179,167.58,167.54,6.63872388]
[1762198503623,3.97844179,167.57,167.54,6.63872388]
[1762198503826,3.97844179,167.56,167.54,6.63872388]
[1762198504133,3.97823406,167.55,167.54,6.63872388]
[1762198504452,3.97823406,167.55,167.5,27.93508279]
[1762198504632,3.97823406,167.54,167.51,21.262]
[1762198504834,0.68,167.57,167.51,42.15627496]
[1762198505177,3.97735129,167.56,167.52,0.67]
[1762198505471,3.97735129,167.55,167.52,0.67]
[1762198505666,3.97835277,167.54,167.52,0.67]
[1762198505835,3.97835277,167.56,167.52,0.67]
[1762198506024,3.97835277,167.55,167.52,0.67]
[1762198506227,0.68,167.57,167.52,0.67]
[1762198506446,3.97906835,167.56,167.52,0.67]
[1762198506636,3.97906835,167.55,167.52,0.67]
[1762198506836,0.68,167.57,167.52,6.63916325]
[1762198507036,4.93120346,167.59,167.52,21.56275446]
[1762198507037,3.98247667,167.56,167.52,21.56275446]
[1762198507247,3.98247667,167.55,167.53,0.67]
[1762198507446,0.68,167.59,167.53,0.67]
[1762198507648,3.98462944,167.58,167.53,0.67]
[1762198507952,0.68,167.59,167.53,0.67]
[1762198507953,3.98465089,167.57,167.53,0.67]
[1762198508133,3.98465089,167.56,167.53,0.67]
[1762198508335,3.98465089,167.55,167.53,0.67]
[1762198508528,0.68,167.58,167.53,0.67]
[1762198508730,3.98549523,167.57,167.53,0.67]
[1762198508950,3.98549523,167.56,167.54,5.96872388]
[1762198509151,3.98549523,167.55,167.54,5.96872388]
[1762198509864,0.68,167.57,167.54,5.96872388]
[1762198510058,3.98581861,167.56,167.54,6.63872388]
[1762198510226,4.98081361,167.59,167.54,26.56072388]
[1762198510430,3.98697131,167.58,167.57,20.592]
[1762198510765,0.68,167.63,167.57,20.592]
[1762198510941,0.68,167.63,167.58,5.9672992]
[1762198511132,4.94826152,167.61,167.53,0.67]
[1762198511452,4.94826152,167.59,167.54,20.592]
[1762198511930,0.68,167.59,167.54,21.262]
[1762198512137,4.94826152,167.56,167.51,0.67]
[1762198513061,5.62826152,167.56,167.51,6.63961359]
[1762198513359,4.94826152,167.53,167.48,5.97086219]
[1762198513550,4.94826152,167.53,167.49,20.592]
[1762198513863,4.94826152,167.5,167.43,5.97264528]
[1762198514035,4.94826152,167.47,167.42,0.87]
[1762198514232,4.94826152,167.46,167.42,6.84276809]
[1762198514464,4.94826152,167.47,167.42,6.84276809]
[1762198514673,0.68,167.5,167.43,0.67]
[1762198514960,4.94826152,167.48,167.43,6.64230192]
[1762198515437,5.62826152,167.47,167.42,20.792]
[1762198515637,4.94826152,167.46,167.42,26.76491652]
[1762198515837,5.62826152,167.47,167.42,6.84291652]
[1762198516570,2.58189479,167.47,167.42,27.43491652]
[1762198516942,1.90189479,167.46,167.42,27.43491652]
[1762198517141,2.58189479,167.46,167.42,27.43491652]
[1762198517750,12.37072248,167.45,167.42,0.2]
[1762198518164,0.68,167.44,167.42,0.2]
[1762198519058,9.78882769,167.45,167.42,0.2]
[1762198519262,10.46882769,167.45,167.42,0.2]
[1762198519456,2.58189479,167.44,167.42,0.2]
[1762198519653,1.90189479,167.43,167.42,0.2]
[1762198520051,0.68,167.44,167.42,0.2]
[1762198520052,2.58189479,167.44,167.42,0.2]
[1762198520362,0.68,167.44,167.42,0.2]
[1762198521167,3.65236692,167.47,167.42,6.84294802]
[1762198521358,3.65236692,167.47,167.42,6.17294802]
[1762198521359,0.68,167.46,167.42,6.17294802]
[1762198521559,0.68,167.46,167.42,6.84294802]
[1762198521768,0.68,167.46,167.42,6.17294802]
[1762198522475,0.68,167.46,167.42,0.2]
[1762198522648,2.97236692,167.44,167.42,0.2]
[1762198523056,9.78882769,167.45,167.42,0.87]
[1762198523257,9.78882769,167.45,167.42,0.2]
[1762198523564,10.46882769,167.45,167.42,0.2]
[1762198524146,12.76119461,167.45,167.42,0.2]
[1762198524349,13.44119461,167.45,167.42,0.2]
[1762198524571,0.68,167.44,167.42,0.2]
[1762198526444,9.78882769,167.46,167.42,6.84290256]
[1762198526671,9.78882769,167.47,167.42,6.84290256]
[1762198526882,0.68,167.53,167.45,20.592]
[1762198527174,4.98081361,167.56,167.47,5.97121872]
[1762198527175,3.65236692,167.55,167.47,5.97121872]
[1762198527371,0.68,167.55,167.47,5.97121872]
[1762198527582,9.78882769,167.53,167.48,0.67]
[1762198527958,0.7,167.52,167.48,0.67]
[1762198528580,10.48882769,167.55,167.48,21.262]
[1762198529083,3.96058622,167.56,167.48,21.262]
[1762198529084,9.78882769,167.56,167.5,20.89552238]
[1762198529289,3.96135693,167.57,167.51,21.302]
[1762198529597,17.42220903,167.59,167.51,21.302]
[1762198529875,17.42220903,167.55,167.51,20.592]
[1762198530091,0.7,167.54,167.49,5.97048426]
[1762198530274,9.78882769,167.59,167.49,5.97048426]
[1762198530579,25.83490129,167.6,167.49,6.68048426]
[1762198530580,9.78882769,167.55,167.49,6.68048426]
[1762198530752,9.78882769,167.55,167.49,21.60674851]
[1762198531281,9.78882769,167.55,167.5,0.71]
[1762198531779,0.7,167.55,167.5,0.71]
[1762198532482,8.33338134,167.55,167.5,0.72]
[1762198532670,0.7,167.55,167.5,0.72]
[1762198532980,10.48882769,167.55,167.5,0.72]
[1762198533155,10.48882769,167.55,167.51,5.96979284]
[1762198533676,18.12220903,167.55,167.51,5.96979284]
[1762198534069,0.69,167.54,167.51,5.96979284]
[1762198534661,0.69,167.54,167.5,6.6901402]
[1762198535070,17.42220903,167.55,167.5,6.6901402]
[1762198535389,18.11220903,167.55,167.5,6.6901402]
[1762198535561,0.69,167.54,167.5,6.6901402]
[1762198535762,0.69,167.54,167.5,0.72]
[1762198535983,17.42220903,167.55,167.5,6.69008495]
[1762198536283,4.95169617,167.6,167.5,6.69008495]
[1762198536465,0.69,167.56,167.51,0.72]
[1762198536665,3.96387688,167.57,167.51,0.72]
[1762198536880,13.75270457,167.58,167.51,0.72]
[1762198537087,13.75270457,167.58,167.52,20.89302769]
[1762198537088,3.96387688,167.58,167.52,20.89302769]
[1762198537269,3.96387688,167.59,167.53,20.73416157]
[1762198537587,0.69,167.61,167.54,0.72]
[1762198539080,8.32338134,167.61,167.55,5.96836765]
[1762198539273,0.69,167.61,167.55,5.96836765]
[1762198539478,4.65273346,167.61,167.55,5.96836765]
[1762198539678,0.69,167.61,167.56,0.72]
[1762198539981,11.5961148,167.62,167.56,0.72]
[1762198540184,12.2861148,167.62,167.56,0.72]
[1762198540488,0.69,167.61,167.56,0.72]
[1762198541071,0.69,167.61,167.56,6.68794148]
[1762198541471,0.69,167.61,167.57,0.72]
[1762198541785,3.96273346,167.62,167.57,0.72]
[1762198542280,0.69,167.63,167.57,21.312]
[1762198542480,12.28467776,167.66,167.57,21.312]
[1762198542671,4.65129642,167.66,167.59,20.592]
[1762198542875,0.69,167.65,167.59,20.592]
[1762198543070,8.32338134,167.65,167.59,21.312]
[1762198543386,8.32338134,167.65,167.6,5.96658711]
[1762198543601,7.63338134,167.62,167.58,20.592]
[1762198543894,11.59467776,167.63,167.58,27.27927968]
[1762198544074,12.28467776,167.63,167.58,26.55927968]
[1762198544278,0.69,167.62,167.58,27.27927968]
[1762198544790,17.42220903,167.63,167.59,0.72]
[1762198544986,18.11220903,167.63,167.59,0.72]
[1762198545188,18.11220903,167.63,167.59,6.68687754]
[1762198545775,9.78882769,167.65,167.6,0.72]
[1762198545976,14.43799515,167.65,167.6,0.72]
[1762198546283,0.69,167.64,167.6,0.72]
[1762198546688,9.78882769,167.68,167.6,0.72]
[1762198546900,0.69,167.64,167.59,6.68687754]
[1762198547103,8.32338134,167.64,167.59,6.68687754]
[1762198547272,8.32338134,167.64,167.6,0.72]
[1762198547473,7.63338134,167.63,167.59,6.68687754]
[1762198547672,8.32338134,167.62,167.58,26.55922686]
[1762198547891,7.63338134,167.62,167.58,27.27922686]
[1762198548099,7.63338134,167.63,167.59,0.72]
[1762198548281,8.32338134,167.63,167.59,0.72]
[1762198549000,8.32338134,167.63,167.59,6.68678108]
[1762198549574,0.69,167.65,167.6,0.72]
[1762198549779,8.32338134,167.65,167.6,0.72]
[1762198549984,17.42220903,167.63,167.58,26.5592641]
[1762198550390,18.11220903,167.63,167.58,27.2792641]
[1762198550701,10.47882769,167.63,167.58,27.2792641]
[1762198550882,10.47882769,167.63,167.58,26.5592641]
[1762198551084,10.47882769,167.63,167.58,27.2792641]
[1762198551304,10.47882769,167.63,167.58,21.312]
[1762198551305,8.32338134,167.62,167.58,21.312]
[1762198551606,0.69,167.62,167.58,21.312]
[1762198552386,0.69,167.62,167.58,27.27928318]
[1762198554579,0.69,167.63,167.58,42.19753118]
[1762198554880,0.69,167.63,167.59,0.72]
[1762198555780,0.69,167.63,167.58,41.47753118]
[1762198555981,0.69,167.63,167.58,42.19753118]
[1762198557397,7.63338134,167.62,167.56,0.72]
[1762198557580,17.42220903,167.62,167.56,27.27990941]
[1762198557906,18.11220903,167.62,167.56,42.19993805]
[1762198558087,10.47882769,167.62,167.57,0.72]
[1762198558289,0.69,167.62,167.57,0.72]
[1762198559282,9.78882769,167.63,167.58,5.9672992]
[1762198559706,0.69,167.62,167.58,6.6872992]
[1762198560003,17.42220903,167.63,167.58,6.6872992]
[1762198560193,0.69,167.62,167.58,6.6872992]
[1762198560788,7.63338134,167.6,167.56,20.592]
[1762198561100,9.78882769,167.61,167.54,0.72]
[1762198561301,9.78882769,167.61,167.54,6.68867034]
[1762198561504,29.81920974,167.68,167.54,19.00867034]
[1762198561505,3.94916876,167.63,167.54,19.00867034]
[1762198561699,3.94916876,167.67,167.58,0.14216157]
[1762198562013,0.69,167.67,167.62,20.592]
[1762198562385,0.69,167.67,167.62,21.312]
[1762198562799,0.69,167.67,167.62,20.592]
[1762198563005,0.2,167.71,167.63,0.66]
[1762198563223,0.67,167.67,167.61,0.66]
[1762198563388,8.30338134,167.67,167.62,5.96587519]
[1762198563586,0.67,167.67,167.62,5.96587519]
[1762198563786,3.94916876,167.68,167.63,0.66]
[1762198563985,0.67,167.7,167.63,21.252]
[1762198564291,7.63338134,167.68,167.63,20.592]
[1762198564534,7.63338134,167.69,167.63,0.66]
[1762198564718,8.30338134,167.69,167.63,21.252]
[1762198564905,0.67,167.69,167.63,21.252]
[1762198565232,0.67,167.69,167.64,0.66]
[1762198565631,0.67,167.69,167.64,6.62494608]
[1762198566124,0.67,167.69,167.65,0.66]
[1762198566323,3.94916876,167.7,167.65,0.66]
[1762198566533,0.2,167.71,167.65,0.66]
[1762198567406,4.61916876,167.7,167.64,6.62494608]
[1762198567602,0.67,167.7,167.65,20.592]
[1762198567830,0.67,167.69,167.64,6.62494608]
[1762198568319,7.63338134,167.68,167.62,5.96559571]
[1762198568517,4.61916876,167.69,167.63,0.66]
[1762198568721,8.30338134,167.69,167.63,0.66]
[1762198568940,11.5825501,167.69,167.63,0.66]
[1762198569141,7.63338134,167.67,167.61,33.572]
[1762198569431,7.63338134,167.66,167.62,0.66]
[1762198569634,11.5825501,167.67,167.62,0.66]
[1762198569839,12.2525501,167.67,167.62,6.62558906]
[1762198570008,8.30338134,167.67,167.63,0.66]
[1762198570210,0.67,167.67,167.63,0.66]
[1762198570410,0.67,167.66,167.62,5.96558906]
[1762198570610,4.62820944,167.66,167.62,6.62558906]
[1762198570813,0.67,167.66,167.62,6.62558906]
[1762198571021,7.63338134,167.66,167.61,20.592]
[1762198571338,12.26159078,167.65,167.6,5.96634357]
[1762198571634,0.67,167.67,167.61,0.66]
[1762198571812,20.792,167.71,167.62,5.96587519]
[1762198571813,3.96748465,167.66,167.62,5.96587519]
[1762198572018,3.96754266,167.67,167.61,6.62616736]
[1762198572232,3.96754266,167.66,167.61,6.62616736]
[1762198572432,3.96754266,167.65,167.61,6.62616736]
[1762198572631,3.96754266,167.66,167.62,0.66]
[1762198572836,3.96754266,167.65,167.62,0.66]
[1762198573012,20.792,167.71,167.64,20.592]
[1762198573013,3.96754266,167.68,167.64,20.592]
[1762198573334,3.96754266,167.7,167.65,0.66]
[1762198573538,0.2,167.71,167.65,0.66]
[1762198573713,3.96681735,167.7,167.66,5.96445186]
[1762198573907,0.2,167.71,167.66,5.96445186]
[1762198574112,0.2,167.71,167.67,0.66]
[1762198574723,0.2,167.71,167.67,21.252]
[1762198574923,4.16741969,167.71,167.69,20.592]
[1762198575323,4.16741969,167.71,167.69,21.252]
[1762198575937,4.16741969,167.71,167.7,5.96302921]
[1762198576529,4.16666453,167.71,167.7,5.96302921]
[1762198576911,0.2,167.71,167.7,6.62302921]
[1762198577112,0.2,167.71,167.7,6.76519078]
[1762198577448,1e-08,167.73,167.72,20.73416157]
[1762198577614,1e-08,167.73,167.72,33.05416157]
[1762198577819,1e-08,167.73,167.72,39.67647971]
[1762198579952,1e-08,167.73,167.72,143.97647971]
[1762198580825,1e-08,167.73,167.72,27.35647971]
[1762198581014,1e-08,167.73,167.72,39.67647971]
[1762198583227,1e-08,167.73,167.72,143.97647971]
[1762198583663,0.1,167.76,167.73,9.93098926]
[1762198583947,0.1,167.76,167.75,26.69541343]
[1762198584246,0.1,167.76,167.75,27.35541343]
[1762198584447,0.1,167.76,167.75,39.67541343]
[1762198584941,0.1,167.76,167.75,27.35541343]
[1762198585246,0.1,167.76,167.75,27.21325186]
[1762198585429,0.1,167.76,167.75,39.53325186]
[1762198585629,0.1,167.76,167.75,33.572]
[1762198585941,0.1,167.76,167.73,5.96196267]
[1762198586127,0.77,167.76,167.72,12.32]
[1762198586437,0.1,167.76,167.72,12.98]
[1762198587549,0.77,167.76,167.72,12.98]
[1762198587750,0.77,167.76,167.72,12.32]
[1762198588041,0.77,167.76,167.72,18.28230925]
[1762198588435,5.70239499,167.76,167.71,26.55456897]
[1762198588741,4.93239499,167.75,167.71,38.87456897]
[1762198588931,4.93239499,167.75,167.71,39.58456897]
[1762198589133,5.70239499,167.76,167.71,39.58456897]
[1762198589338,0.77,167.76,167.71,38.87456897]
[1762198589532,0.77,167.76,167.71,39.58456897]
[1762198589533,0.1,167.76,167.71,39.58456897]
[1762198589728,0.1,167.76,167.71,53.78125312]
[1762198589930,0.78,167.76,167.71,54.49125312]
[1762198590130,0.78,167.76,167.71,39.58456897]
[1762198590335,5.71239499,167.76,167.71,39.58456897]
[1762198590849,0.68,167.75,167.71,39.58456897]
[1762198592544,0.68,167.75,167.71,38.87456897]
[1762198592948,0.68,167.75,167.68,0.14216157]
[1762198593153,0.68,167.75,167.7,20.592]
[1762198593454,0.68,167.75,167.7,26.55492074]
[1762198593650,0.68,167.75,167.7,27.21492074]
[1762198593950,0.68,167.75,167.71,0.66]
[1762198595040,0.68,167.75,167.7,26.55499203]
[1762198595460,1.89488727,167.73,167.66,0.14216157]
[1762198595633,1.89488727,167.72,167.66,6.62445186]
[1762198595835,11.68371496,167.73,167.66,39.51645186]
[1762198596051,9.78882769,167.73,167.67,0.66]
[1762198596358,10.47882769,167.73,167.67,0.66]
[1762198597129,2.58488727,167.75,167.67,0.66]
[1762198597334,0.69,167.74,167.67,0.66]
[1762198597536,11.68371496,167.73,167.67,0.66]
[1762198597747,11.68371496,167.73,167.67,18.92405458]
[1762198597950,1.89488727,167.7,167.66,20.592]
[1762198598168,1.89488727,167.69,167.64,0.66]
[1762198598327,1.89488727,167.69,167.64,18.26493032]
[1762198598530,0.69,167.69,167.65,0.66]
[1762198599830,0.69,167.69,167.64,38.85693032]
[1762198600555,0.69,167.69,167.64,39.51693032]
[1762198601051,0.69,167.69,167.64,26.55693032]
[1762198601351,0.69,167.69,167.64,27.21693032]
[1762198603845,0.69,167.69,167.64,26.55693032]
[1762198604160,0.69,167.69,167.64,27.21693032]
[1762198605351,14.72723284,167.68,167.63,5.96551535]
[1762198605556,0.69,167.69,167.64,0.66]
[1762198605744,0.69,167.7,167.64,0.66]
[1762198606853,0.69,167.7,167.63,41.47131359]
[1762198607064,0.69,167.7,167.63,42.13131359]
[1762198607362,5.62840515,167.7,167.63,27.21751535]
[1762198607545,9.78882769,167.68,167.63,26.55751535]
[1762198607746,0.69,167.67,167.63,39.53751535]
[1762198607950,4.93840515,167.7,167.63,38.87751535]
[1762198608286,0.69,167.7,167.64,0.66]
[1762198608936,0.69,167.7,167.63,39.53751535]
[1762198609358,0.69,167.7,167.65,5.96480763]
[1762198610053,0.69,167.7,167.65,6.62480763]